[Event "GER-ch Youth U12W 2020"]
[Site "Willingen"]
[Date "2020.10.30"]
[Round "5.10"]
[White "Petrosyan, Ani"]
[Black "Glotz, Diana"]
[Result "1-0"]
[ECO "A06"]
[WhiteElo "1370"]
[BlackElo "1098"]
[Annotator "NA RC"]
[PlyCount "101"]
[EventDate "2020.10.27"]
[EventType "swiss"]
[EventRounds "7"]
[EventCountry "GER"]
[SourceTitle "playchess.com"]
[Source "ChessBase"]
[SourceQuality "1"]
[TimeControl "40/5400+30:1800+30"]

1. Nf3 {[%emt 0:00:00]} d5 {[%emt 0:00:00]} 2. e3 {[%emt 0:00:00]} Nf6 {[%emt 0:00:00]} 3. c4 {[%emt 0:00:00]} e6 {[%emt 0:00:00]} 4. b3 {[%emt 0:00:15]} Be7 {[%emt 0:00:10]} 5. Bb2 {[%emt 0:00:21]} b6 {[%emt 0:00:33]} 6. Be2 {[%emt 0:00:39]} Bb7 {[%emt 0:00:27]} 7. O-O {[%emt 0:02:03]} O-O {[%emt 0:00:18]} 8. Na3 {[%emt 0:02:34]} Nbd7 {[%emt 0:02:27]} 9. Nc2 {[%emt 0:03:23]} c5 {[%emt 0:03:37]} 10. d4 {[%emt 0:02:08]} Rc8 {[%emt 0:01:18]} 11. Na3 {[%emt 0:11:29]} a6 {[%emt 0:02:00]} 12. Rc1 {[%emt 0:02:36]} Rc7 {[%emt 0:01:30]} 13. Qd3 {[%emt 0:04:49]} Qa8 {[%emt 0:09:27]} 14. Rfd1 {[%emt 0:04:16]} Rd8 {[%emt 0:04:07]} 15. Qb1 {[%emt 0:06:51]} Qa7 {[%emt 0:11:38]} 16. h3 {[%emt 0:04:22]} Qa8 {[%emt 0:02:30]} 17. Qa1 {[%emt 0:12:54]} h6 {[%emt 0:01:41]} 18. Nb1 {[%emt 0:04:37]} Nf8 {[%emt 0:06:31]} 19. Nc3 {[%emt 0:07:02]} N8h7 {[%emt 0:00:49]} 20. Na4 {[%emt 0:01:42]} Rc6 {[%emt 0:06:42]} 21. Ne5 {[%emt 0:01:59]} Rcd6 {[%emt 0:07:45]} 22. dxc5 {[%emt 0:00:28]} bxc5 {[%emt 0:00:18]} 23. Nxc5 {[%emt 0:00:11]} dxc4 {[%emt 0:02:08]} 24. Nxb7 {[%emt 0:05:12]} Rxd1+ {[%emt 0:01:23]} 25. Rxd1 {[%emt 0:00:34]} Rxd1+ {[%emt 0:00:08]} 26. Qxd1 {[%emt 0:00:28]} Qxb7 {[%emt 0:00:18]} 27. Bxc4 {[%emt 0:00:28]} a5 {[%emt 0:03:05]} 28. Qd2 {[%emt 0:03:06]} Bb4 {[%emt 0:03:56]} 29. Qd8+ {[%emt 0:00:57]} Nf8 {[%emt 0:02:15]} 30. a3 {[%emt 0:00:36]} Be7 {[%emt 0:15:29]} 31. Qxa5 {[%emt 0:00:29]} Ne4 {[%emt 0:05:03]} 32. Qb5 {[%emt 0:02:00]} Qxb5 {[%emt 0:00:29]} 33. Bxb5 {[%emt 0:00:17]} Nc5 {[%emt 0:00:27]} 34. Bc4 {[%emt 0:01:49]} Bf6 {[%emt 0:00:36]} 35. Bd4 {[%emt 0:00:26]} Ncd7 {[%emt 0:00:30]} 36. Nxd7 {[%emt 0:00:26]} Nxd7 37. Bxf6 {[%emt 0:00:27]} Nxf6 {[%emt 0:00:12]} 38. b4 {[%emt 0:00:05]} Kf8 {[%emt 0:00:28]} 39. b5 {[%emt 0:00:14]} Ke8 {[%emt 0:00:12]} 40. b6 {[%emt 0:00:28]} Kd8 {[%emt 0:00:08]} 41. a4 {[%emt 0:30:16]} Nd7 {[%emt 0:30:13]} 42. a5 {[%emt 0:00:42]} Kc8 {[%emt 0:00:34]} 43. Bb5 {[%emt 0:00:21]} Nb8 {[%emt 0:01:42]} 44. a6 {[%emt 0:00:50]} Nxa6 {[%emt 0:03:06]} 45. Bxa6+ Kb8 {[%emt 0:00:04]} 46. f4 {[%emt 0:00:40]} f6 {[%emt 0:00:17]} 47. Kf2 {[%emt 0:00:04]} g5 {[%emt 0:00:10]} 48. fxg5 {[%emt 0:00:09]} hxg5 {[%emt 0:00:08]} 49. Kf3 {[%emt 0:00:06]} f5 {[%emt 0:00:13]} 50. e4 {[%emt 0:00:06]} Ka8 {[%emt 0:00:23]} 51. g3 {[%emt 0:00:00]} 1-0

[Event "GER-ch Youth U12W 2020"]
[Site "Willingen"]
[Date "2020.10.30"]
[Round "5.11"]
[White "Czäczine, Laura"]
[Black "Siegel, Irene"]
[Result "0-1"]
[ECO "C44"]
[WhiteElo "1309"]
[BlackElo "1380"]
[Annotator "NA RC"]
[PlyCount "64"]
[EventDate "2020.10.27"]
[EventType "swiss"]
[EventRounds "7"]
[EventCountry "GER"]
[SourceTitle "playchess.com"]
[Source "ChessBase"]
[SourceQuality "1"]
[TimeControl "40/5400+30:1800+30"]

1. e4 {[%emt 0:00:00]} e5 {[%emt 0:00:00]} 2. Nf3 {[%emt 0:00:00]} Nc6 {[%emt 0:00:00]} 3. d4 {[%emt 0:00:00]} exd4 {[%emt 0:00:00]} 4. c3 {[%emt 0:00:00]} dxc3 5. Bc4 {[%emt 0:00:00]} Bb4 {[%emt 0:01:31]} 6. O-O {[%emt 0:00:33]} Nge7 {[%emt 0:01:44]} 7. a3 {[%emt 0:02:05]} Bc5 {[%emt 0:01:24]} 8. Nxc3 {[%emt 0:00:49]} O-O {[%emt 0:00:52]} 9. b4 {[%emt 0:01:10]} Bb6 {[%emt 0:01:04]} 10. Bb2 {[%emt 0:00:55]} d6 {[%emt 0:02:38]} 11. Ng5 {[%emt 0:02:24]} Ne5 {[%emt 0:02:04]} 12. Ba2 {[%emt 0:05:37]} N7g6 {[%emt 0:02:06]} 13. Qh5 {[%emt 0:00:43]} h6 {[%emt 0:00:45]} 14. Nf3 {[%emt 0:01:17]} Bg4 {[%emt 0:00:41]} 15. Nxe5 {[%emt 0:05:37]} Bxh5 {[%emt 0:02:23]} 16. Nd3 {[%emt 0:00:48]} Qg5 {[%emt 0:00:56]} 17. Bc1 {[%emt 0:02:00]} Qg4 {[%emt 0:01:28]} 18. Re1 {[%emt 0:03:03]} Nh4 {[%emt 0:01:27]} 19. g3 {[%emt 0:02:05]} Nf3+ {[%emt 0:00:57]} 20. Kg2 {[%emt 0:00:32]} Nxe1+ {[%emt 0:00:49]} 21. Nxe1 {[%emt 0:00:08]} Bd4 {[%emt 0:01:06]} 22. Bd2 {[%emt 0:01:23]} Bxc3 {[%emt 0:01:07]} 23. Bxc3 {[%emt 0:00:08]} Qxe4+ {[%emt 0:00:10]} 24. Kg1 {[%emt 0:00:52]} Rfe8 {[%emt 0:02:45]} 25. Ng2 {[%emt 0:00:37]} Qf3 {[%emt 0:03:43]} 26. Bd4 {[%emt 0:02:32]} Bg4 {[%emt 0:02:51]} 27. Rc1 {[%emt 0:01:12]} Bh3 {[%emt 0:01:40]} 28. Nh4 {[%emt 0:00:18]} Qe4 {[%emt 0:00:28]} 29. Be3 {[%emt 0:00:42]} g5 {[%emt 0:00:44]} 30. Rc4 {[%emt 0:01:22]} Qd3 {[%emt 0:01:15]} 31. Ng2 {[%emt 0:01:06]} Qd1+ {[%emt 0:00:24]} 32. Ne1 {[%emt 0:00:19]} Qxe1# 0-1

[Event "GER-ch Youth U12W 2020"]
[Site "Willingen"]
[Date "2020.10.30"]
[Round "5.12"]
[White "Pröttel, Ela"]
[Black "Rodermel, Leonie"]
[Result "1/2-1/2"]
[ECO "C02"]
[WhiteElo "1229"]
[BlackElo "1370"]
[Annotator "NA RC"]
[PlyCount "93"]
[EventDate "2020.10.27"]
[EventType "swiss"]
[EventRounds "7"]
[EventCountry "GER"]
[SourceTitle "playchess.com"]
[Source "ChessBase"]
[SourceQuality "1"]
[TimeControl "40/5400+30:1800+30"]

1. e4 {[%emt 0:00:00]} e6 {[%emt 0:00:00]} 2. d4 {[%emt 0:00:15]} d5 {[%emt 0:00:00]} 3. e5 {[%emt 0:00:08]} c5 {[%emt 0:00:00]} 4. c3 {[%emt 0:00:09]} Nc6 {[%emt 0:00:00]} 5. Nf3 {[%emt 0:00:04]} Qb6 {[%emt 0:00:00]} 6. a3 {[%emt 0:00:33]} c4 {[%emt 0:00:04]} 7. Nbd2 {[%emt 0:03:43]} Na5 {[%emt 0:00:16]} 8. g3 {[%emt 0:00:31]} Bd7 {[%emt 0:01:25]} 9. h4 {[%emt 0:01:00]} h6 {[%emt 0:03:57]} 10. Bh3 {[%emt 0:18:17]} Be7 {[%emt 0:07:47]} 11. h5 {[%emt 0:06:36]} O-O-O {[%emt 0:16:34]} 12. O-O {[%emt 0:01:49]} Bg5 {[%emt 0:05:11]} 13. Nxg5 {[%emt 0:15:13]} hxg5 {[%emt 0:00:09]} 14. Rb1 {[%emt 0:12:21]} Kb8 {[%emt 0:30:01]} 15. b4 {[%emt 0:04:18]} cxb3 {[%emt 0:00:22]} 16. Nxb3 {[%emt 0:00:19]} Nxb3 {[%emt 0:05:35]} 17. Qxb3 {[%emt 0:05:44]} Qxb3 {[%emt 0:00:17]} 18. Rxb3 {[%emt 0:00:06]} Rxh5 {[%emt 0:04:30]} 19. Bg4 {[%emt 0:00:18]} Rh7 {[%emt 0:01:19]} 20. Bxg5 {[%emt 0:00:14]} f6 {[%emt 0:01:31]} 21. exf6 {[%emt 0:01:38]} gxf6 {[%emt 0:00:15]} 22. Bf4+ {[%emt 0:01:15]} Kc8 {[%emt 0:01:30]} 23. Rfb1 {[%emt 0:00:35]} Ne7 {[%emt 0:05:29]} 24. Rxb7 {[%emt 0:00:37]} e5 {[%emt 0:00:55]} 25. Rb8+ {[%emt 0:08:42]} Kc7 {[%emt 0:00:06]} 26. R1b7+ {[%emt 0:02:32]} Kc6 {[%emt 0:00:15]} 27. Rxd8 {[%emt 0:00:26]} Bxg4 {[%emt 0:00:36]} 28. Rxe7 {[%emt 0:06:03]} Rxe7 {[%emt 0:00:06]} 29. dxe5 {[%emt 0:00:19]} fxe5 {[%emt 0:00:17]} 30. Rg8 {[%emt 0:02:38]} Bf3 {[%emt 0:00:32]} 31. Bg5 {[%emt 0:05:27]} Rb7 {[%emt 0:00:34]} 32. g4 {[%emt 0:03:34]} Rh7 {[%emt 0:01:51]} 33. Rg6+ {[%emt 0:00:20]} Kc5 {[%emt 0:00:18]} 34. Rh6 {[%emt 0:00:06]} Rxh6 {[%emt 0:00:16]} 35. Bxh6 {[%emt 0:00:12]} Bxg4 {[%emt 0:00:12]} 36. Kf1 {[%emt 0:00:26]} Kc4 {[%emt 0:01:10]} 37. Bg7 {[%emt 0:00:48]} d4 {[%emt 0:02:28]} 38. cxd4 {[%emt 0:00:15]} exd4 {[%emt 0:00:09]} 39. Ke1 {[%emt 0:00:47]} Kd3 {[%emt 0:01:01]} 40. a4 {[%emt 0:00:46]} Kc4 {[%emt 0:03:45]} 41. a5 {[%emt 0:30:34]} Kb5 {[%emt 0:31:04]} 42. Bxd4 {[%emt 0:00:18]} Kxa5 {[%emt 0:00:34]} 43. Bxa7 {[%emt 0:00:07]} Kb5 {[%emt 0:00:02]} 44. Kd2 {[%emt 0:01:22]} Kc4 {[%emt 0:00:19]} 45. Ke3 {[%emt 0:00:18]} Kd5 {[%emt 0:00:11]} 46. Kf4 {[%emt 0:00:00]} Bh3 {[%emt 0:00:00]} 47. Kg5 {[%emt 0:00:00]} 1/2-1/2

[Event "GER-ch Youth U12W 2020"]
[Site "Willingen"]
[Date "2020.10.30"]
[Round "5.13"]
[White "Modali, Nikhilamrutha"]
[Black "Margaryan, Venera"]
[Result "0-1"]
[ECO "C01"]
[WhiteElo "1193"]
[BlackElo "1457"]
[Annotator "NA RC"]
[PlyCount "46"]
[EventDate "2020.10.27"]
[EventType "swiss"]
[EventRounds "7"]
[EventCountry "GER"]
[SourceTitle "playchess.com"]
[Source "ChessBase"]
[SourceQuality "1"]
[TimeControl "40/5400+30:1800+30"]

1. e4 {[%emt 0:00:00]} e6 {[%emt 0:00:00]} 2. d4 {[%emt 0:00:00]} d5 {[%emt 0:00:00]} 3. exd5 {[%emt 0:00:00]} exd5 {[%emt 0:00:00]} 4. Nf3 {[%emt 0:00:00]} Nf6 {[%emt 0:00:01]} 5. Bd3 {[%emt 0:00:58]} Bd6 {[%emt 0:00:06]} 6. Qe2+ {[%emt 0:02:11]} Be6 {[%emt 0:01:44]} 7. Ng5 {[%emt 0:03:29]} Qe7 {[%emt 0:01:28]} 8. Nxe6 {[%emt 0:08:48]} fxe6 {[%emt 0:01:25]} 9. O-O {[%emt 0:07:03]} e5 {[%emt 0:01:49]} 10. dxe5 {[%emt 0:04:01]} Bxe5 {[%emt 0:02:02]} 11. Re1 {[%emt 0:02:22]} Nfd7 {[%emt 0:04:51]} 12. Bf4 {[%emt 0:02:52]} Nc6 {[%emt 0:01:55]} 13. Qh5+ {[%emt 0:07:31]} Kf8 {[%emt 0:07:07]} 14. Bxe5 {[%emt 0:11:10]} Ndxe5 {[%emt 0:03:33]} 15. c4 {[%emt 0:11:40]} Qf6 {[%emt 0:13:30]} 16. Re3 {[%emt 0:05:19]} d4 {[%emt 0:09:34]} 17. Rh3 {[%emt 0:06:26]} Nb4 {[%emt 0:07:49]} 18. Qd1 {[%emt 0:05:09]} Nbxd3 {[%emt 0:05:16]} 19. Rxd3 {[%emt 0:00:39]} Nxd3 {[%emt 0:00:17]} 20. Qxd3 {[%emt 0:00:07]} Re8 {[%emt 0:00:56]} 21. Nd2 {[%emt 0:01:24]} Kf7 {[%emt 0:03:57]} 22. Ne4 {[%emt 0:02:27]} Qe5 {[%emt 0:02:37]} 23. Re1 {[%emt 0:00:50]} Rhf8 {[%emt 0:04:59]} 0-1

[Event "GER-ch Youth U12W 2020"]
[Site "Willingen"]
[Date "2020.10.30"]
[Round "5.14"]
[White "Reich, Elisabeth"]
[Black "Steinlechner, Katja"]
[Result "1/2-1/2"]
[ECO "B10"]
[WhiteElo "1128"]
[BlackElo "1366"]
[Annotator "NA RC"]
[PlyCount "64"]
[EventDate "2020.10.27"]
[EventType "swiss"]
[EventRounds "7"]
[EventCountry "GER"]
[SourceTitle "playchess.com"]
[Source "ChessBase"]
[SourceQuality "1"]
[TimeControl "40/5400+30:1800+30"]

1. e4 {[%emt 0:00:00]} c6 {[%emt 0:00:00]} 2. d3 {[%emt 0:00:00]} d5 {[%emt 0:00:00]} 3. Nd2 {[%emt 0:00:00]} e5 {[%emt 0:00:16]} 4. Ngf3 {[%emt 0:00:00]} Bd6 {[%emt 0:00:18]} 5. g3 {[%emt 0:00:00]} Nf6 {[%emt 0:00:22]} 6. Bg2 {[%emt 0:00:12]} O-O {[%emt 0:00:18]} 7. O-O {[%emt 0:00:07]} Nbd7 {[%emt 0:00:30]} 8. Re1 {[%emt 0:00:33]} Re8 {[%emt 0:00:21]} 9. Nh4 {[%emt 0:00:39]} Qc7 {[%emt 0:03:13]} 10. Nf5 {[%emt 0:00:46]} a5 {[%emt 0:03:02]} 11. Nxd6 {[%emt 0:01:17]} Qxd6 {[%emt 0:00:25]} 12. a4 {[%emt 0:00:50]} dxe4 {[%emt 0:03:21]} 13. Nxe4 {[%emt 0:01:14]} Nxe4 {[%emt 0:00:18]} 14. Bxe4 {[%emt 0:00:39]} Nc5 {[%emt 0:03:35]} 15. Bg2 {[%emt 0:01:06]} Be6 {[%emt 0:02:21]} 16. Be3 {[%emt 0:06:38]} g6 {[%emt 0:07:09]} 17. b3 {[%emt 0:06:45]} Rad8 {[%emt 0:05:26]} 18. Qd2 {[%emt 0:05:49]} Bf5 {[%emt 0:04:58]} 19. Qxa5 {[%emt 0:06:39]} Na6 {[%emt 0:04:55]} 20. Qc3 {[%emt 0:07:17]} Re6 {[%emt 0:04:16]} 21. Rab1 {[%emt 0:12:09]} Qb4 {[%emt 0:07:59]} 22. Bd2 {[%emt 0:03:38]} Qxc3 {[%emt 0:00:58]} 23. Bxc3 {[%emt 0:00:03]} Rde8 {[%emt 0:00:52]} 24. f3 {[%emt 0:01:16]} g5 {[%emt 0:06:06]} 25. Rbc1 {[%emt 0:05:18]} Nc7 {[%emt 0:03:25]} 26. Bd2 {[%emt 0:02:33]} f6 {[%emt 0:02:47]} 27. Re2 {[%emt 0:03:12]} R8e7 {[%emt 0:06:30]} 28. Rce1 {[%emt 0:03:33]} h5 {[%emt 0:03:15]} 29. h3 {[%emt 0:04:15]} g4 {[%emt 0:02:37]} 30. fxg4 {[%emt 0:01:27]} hxg4 {[%emt 0:00:58]} 31. h4 {[%emt 0:00:11]} Bg6 {[%emt 0:02:30]} 32. Kh2 {[%emt 0:01:06]} f5 1/2-1/2

[Event "GER-ch Youth U12W 2020"]
[Site "Willingen"]
[Date "2020.10.30"]
[Round "5.15"]
[White "Cerkez, Lorena"]
[Black "Flierl, Veronika"]
[Result "1-0"]
[ECO "B12"]
[WhiteElo "1258"]
[BlackElo "1404"]
[Annotator "NA RC"]
[PlyCount "39"]
[EventDate "2020.10.27"]
[EventType "swiss"]
[EventRounds "7"]
[EventCountry "GER"]
[SourceTitle "playchess.com"]
[Source "ChessBase"]
[SourceQuality "1"]
[TimeControl "40/5400+30:1800+30"]

1. e4 {[%emt 0:00:00]} c6 {[%emt 0:00:00]} 2. d4 {[%emt 0:00:00]} d5 {[%emt 0:00:00]} 3. e5 {[%emt 0:00:00]} Bf5 {[%emt 0:00:00]} 4. h4 {[%emt 0:00:00]} e6 {[%emt 0:00:51]} 5. g4 {[%emt 0:00:11]} Be4 {[%emt 0:00:46]} 6. f3 {[%emt 0:00:10]} Qa5+ {[%emt 0:11:09]} 7. Nc3 {[%emt 0:34:30]} Bb4 {[%emt 0:01:58]} 8. Bd2 {[%emt 0:02:55]} Qb6 {[%emt 0:01:24]} 9. Na4 {[%emt 0:11:05]} Bxc2 {[%emt 0:07:57]} 10. Nxb6 {[%emt 0:02:43]} Bxd1 {[%emt 0:00:10]} 11. Nxa8 {[%emt 0:00:41]} Bxd2+ {[%emt 0:00:13]} 12. Kxd2 {[%emt 0:00:13]} Ba4 {[%emt 0:00:58]} 13. b3 {[%emt 0:00:12]} Bb5 {[%emt 0:00:30]} 14. Nc7+ {[%emt 0:01:03]} Kd8 {[%emt 0:00:14]} 15. Nxb5 {[%emt 0:00:10]} cxb5 {[%emt 0:00:06]} 16. Bxb5 {[%emt 0:00:06]} a6 {[%emt 0:00:15]} 17. Bd3 {[%emt 0:00:13]} Nc6 {[%emt 0:00:06]} 18. Ne2 {[%emt 0:00:20]} Nge7 {[%emt 0:00:18]} 19. Ke3 {[%emt 0:02:15]} Kd7 {[%emt 0:00:40]} 20. f4 1-0

[Event "GER-ch Youth U12W 2020"]
[Site "Willingen"]
[Date "2020.10.30"]
[Round "5.16"]
[White "Moldovan, Tatiana"]
[Black "Müller, Riyanna"]
[Result "0-1"]
[ECO "C77"]
[WhiteElo "1516"]
[BlackElo "1460"]
[Annotator "NA RC"]
[PlyCount "84"]
[EventDate "2020.10.27"]
[EventType "swiss"]
[EventRounds "7"]
[EventCountry "GER"]
[SourceTitle "playchess.com"]
[Source "ChessBase"]
[SourceQuality "1"]
[TimeControl "40/5400+30:1800+30"]

1. e4 {[%emt 0:04:10]} e5 {[%emt 0:00:50]} 2. Nf3 {[%emt 0:00:12]} Nc6 {[%emt 0:01:20]} 3. Bb5 {[%emt 0:00:13]} a6 {[%emt 0:00:41]} 4. Ba4 {[%emt 0:00:10]} Nf6 {[%emt 0:00:57]} 5. d3 {[%emt 0:00:13]} b5 {[%emt 0:01:39]} 6. Bb3 {[%emt 0:00:09]} Bc5 {[%emt 0:01:09]} 7. Bd5 {[%emt 0:04:05]} Nxd5 {[%emt 0:05:48]} 8. exd5 {[%emt 0:00:31]} Nd4 {[%emt 0:00:24]} 9. Nxe5 {[%emt 0:01:24]} Qe7 {[%emt 0:02:05]} 10. O-O {[%emt 0:00:47]} O-O {[%emt 0:04:20]} 11. Nf3 {[%emt 0:04:54]} Re8 {[%emt 0:01:48]} 12. Nxd4 {[%emt 0:02:25]} Bxd4 {[%emt 0:00:30]} 13. c3 {[%emt 0:00:13]} Bb6 {[%emt 0:01:13]} 14. Nd2 {[%emt 0:01:22]} Bb7 {[%emt 0:02:42]} 15. c4 {[%emt 0:00:47]} bxc4 {[%emt 0:08:22]} 16. dxc4 {[%emt 0:01:22]} Qc5 {[%emt 0:03:11]} 17. Qg4 {[%emt 0:04:04]} Re7 {[%emt 0:02:22]} 18. b3 {[%emt 0:00:35]} Rae8 {[%emt 0:03:48]} 19. Bb2 {[%emt 0:04:20]} f6 {[%emt 0:02:28]} 20. Bxf6 {[%emt 0:01:19]} Rf7 {[%emt 0:02:51]} 21. Ne4 {[%emt 0:00:58]} Rxe4 {[%emt 0:03:03]} 22. Qxe4 {[%emt 0:00:17]} gxf6 {[%emt 0:01:01]} 23. Qe8+ {[%emt 0:03:19]} Qf8 {[%emt 0:00:44]} 24. Qxf8+ {[%emt 0:00:08]} Kxf8 {[%emt 0:01:08]} 25. Rfe1 {[%emt 0:00:20]} d6 {[%emt 0:02:09]} 26. Re2 {[%emt 0:05:31]} Bc8 {[%emt 0:02:56]} 27. h3 {[%emt 0:03:39]} Rg7 {[%emt 0:02:13]} 28. Kh2 {[%emt 0:00:42]} Ba5 {[%emt 0:01:15]} 29. Rd1 {[%emt 0:00:56]} Bc3 {[%emt 0:02:21]} 30. f4 {[%emt 0:00:28]} h5 {[%emt 0:03:14]} 31. Rd3 {[%emt 0:00:22]} Bb4 {[%emt 0:00:39]} 32. Rde3 {[%emt 0:00:23]} Bd7 {[%emt 0:00:52]} 33. Rg3 {[%emt 0:01:26]} Rxg3 {[%emt 0:01:27]} 34. Kxg3 {[%emt 0:00:11]} Bc3 {[%emt 0:02:28]} 35. Kh4 {[%emt 0:00:20]} Be8 {[%emt 0:00:44]} 36. g4 {[%emt 0:00:06]} hxg4 {[%emt 0:01:15]} 37. hxg4 {[%emt 0:00:07]} Bd7 {[%emt 0:03:37]} 38. g5 {[%emt 0:00:59]} Bf5 {[%emt 0:00:24]} 39. Kh5 {[%emt 0:00:26]} Kf7 {[%emt 0:01:00]} 40. Rg2 {[%emt 0:00:27]} Bg6+ {[%emt 0:02:34]} 41. Kh6 {[%emt 0:30:53]} f5 {[%emt 0:30:25]} 42. Re2 {[%emt 0:01:28]} Bg7# 0-1

[Event "GER-ch Youth U12W 2020"]
[Site "Willingen"]
[Date "2020.10.30"]
[Round "5.17"]
[White "Heuberger, Sandra"]
[Black "Stepanjan, Marianne"]
[Result "0-1"]
[ECO "D31"]
[WhiteElo "1004"]
[BlackElo "1351"]
[Annotator "NA RC"]
[PlyCount "112"]
[EventDate "2020.10.27"]
[EventType "swiss"]
[EventRounds "7"]
[EventCountry "GER"]
[SourceTitle "playchess.com"]
[Source "ChessBase"]
[SourceQuality "1"]
[TimeControl "40/5400+30:1800+30"]

1. d4 {[%emt 0:00:00]} d5 {[%emt 0:00:00]} 2. c4 {[%emt 0:00:00]} e6 {[%emt 0:00:00]} 3. Nc3 {[%emt 0:00:00]} Be7 {[%emt 0:00:00]} 4. cxd5 {[%emt 0:02:02]} exd5 {[%emt 0:00:00]} 5. e3 {[%emt 0:06:05]} Nf6 {[%emt 0:00:42]} 6. Bd3 {[%emt 0:00:53]} O-O {[%emt 0:00:57]} 7. Nge2 {[%emt 0:01:08]} b6 {[%emt 0:00:47]} 8. O-O {[%emt 0:01:39]} Be6 {[%emt 0:02:05]} 9. b3 {[%emt 0:05:26]} c5 {[%emt 0:06:21]} 10. Ba3 {[%emt 0:06:36]} Nbd7 {[%emt 0:07:46]} 11. Rc1 {[%emt 0:03:12]} c4 {[%emt 0:08:52]} 12. Bxe7 {[%emt 0:02:20]} Qxe7 {[%emt 0:00:12]} 13. Bb1 {[%emt 0:04:32]} cxb3 {[%emt 0:22:04]} 14. Qxb3 {[%emt 0:01:05]} a5 {[%emt 0:09:29]} 15. Qc2 {[%emt 0:09:10]} Rac8 {[%emt 0:02:14]} 16. Qd3 {[%emt 0:01:21]} g6 {[%emt 0:07:20]} 17. f3 {[%emt 0:07:25]} Qb4 {[%emt 0:08:40]} 18. e4 {[%emt 0:08:21]} dxe4 {[%emt 0:03:25]} 19. fxe4 {[%emt 0:00:31]} Bc4 {[%emt 0:01:30]} 20. Qe3 {[%emt 0:05:46]} Ng4 {[%emt 0:07:31]} 21. Qh3 {[%emt 0:03:02]} h5 {[%emt 0:03:28]} 22. Rfe1 {[%emt 0:03:24]} Bxe2 {[%emt 0:00:41]} 23. Rxe2 {[%emt 0:01:16]} Qxd4+ {[%emt 0:00:33]} 24. Kh1 {[%emt 0:03:30]} Nf2+ {[%emt 0:00:49]} 25. Rxf2 {[%emt 0:00:35]} Qxf2 {[%emt 0:00:05]} 26. Qd3 {[%emt 0:01:47]} Ne5 {[%emt 0:01:35]} 27. Qd1 {[%emt 0:02:33]} Rfd8 {[%emt 0:01:36]} 28. Qg1 {[%emt 0:01:16]} Qxg1+ {[%emt 0:00:41]} 29. Kxg1 {[%emt 0:00:53]} Rxc3 {[%emt 0:01:02]} 30. Rxc3 {[%emt 0:00:56]} Rd1+ {[%emt 0:00:02]} 31. Kf2 {[%emt 0:00:14]} Rxb1 {[%emt 0:00:02]} 32. Rc8+ {[%emt 0:00:32]} Kg7 {[%emt 0:00:03]} 33. Rc2 {[%emt 0:00:24]} Ng4+ {[%emt 0:01:20]} 34. Ke2 {[%emt 0:01:07]} Nxh2 {[%emt 0:00:11]} 35. Kf2 {[%emt 0:01:03]} Ng4+ {[%emt 0:00:11]} 36. Ke2 {[%emt 0:00:22]} Rg1 {[%emt 0:00:22]} 37. Kf3 {[%emt 0:00:47]} Rf1+ {[%emt 0:00:29]} 38. Ke2 {[%emt 0:00:41]} Rf2+ {[%emt 0:00:03]} 39. Kd3 {[%emt 0:00:21]} Rxc2 {[%emt 0:00:02]} 40. Kxc2 {[%emt 0:00:17]} Ne3+ {[%emt 0:00:03]} 41. Kd3 {[%emt 0:30:18]} Nxg2 {[%emt 0:30:05]} 42. Kd4 {[%emt 0:00:10]} h4 {[%emt 0:00:10]} 43. e5 {[%emt 0:00:08]} h3 {[%emt 0:00:03]} 44. e6 {[%emt 0:00:41]} fxe6 {[%emt 0:00:07]} 45. Ke5 {[%emt 0:00:40]} h2 {[%emt 0:00:05]} 46. Kxe6 {[%emt 0:00:24]} h1=Q {[%emt 0:00:25]} 47. Kd6 {[%emt 0:00:11]} Qe1 {[%emt 0:00:10]} 48. Kc6 {[%emt 0:00:06]} Qd2 {[%emt 0:00:25]} 49. a3 {[%emt 0:00:07]} Qd4 {[%emt 0:00:16]} 50. Kb7 {[%emt 0:00:12]} Qc5 {[%emt 0:00:22]} 51. a4 {[%emt 0:00:21]} Kf7 {[%emt 0:00:53]} 52. Ka8 {[%emt 0:00:27]} Ke7 {[%emt 0:00:03]} 53. Ka7 {[%emt 0:00:09]} Kd7 {[%emt 0:00:08]} 54. Ka6 {[%emt 0:00:17]} Kc7 {[%emt 0:00:12]} 55. Ka7 {[%emt 0:00:12]} Qc4 {[%emt 0:00:05]} 56. Ka8 {[%emt 0:00:14]} Qa6# 0-1

[Event "GER-ch Youth U12W 2020"]
[Site "Willingen"]
[Date "2020.10.30"]
[Round "5.18"]
[White "Hoffmann, Sophia"]
[Black "Rosin, Ida"]
[Result "0-1"]
[ECO "D00"]
[WhiteElo "1345"]
[BlackElo "1387"]
[Annotator "NA RC"]
[PlyCount "44"]
[EventDate "2020.10.27"]
[EventType "swiss"]
[EventRounds "7"]
[EventCountry "GER"]
[SourceTitle "playchess.com"]
[Source "ChessBase"]
[SourceQuality "1"]
[TimeControl "40/5400+30:1800+30"]

1. d4 {[%emt 0:00:00]} d5 {[%emt 0:00:00]} 2. Bf4 {[%emt 0:00:00]} Nf6 {[%emt 0:00:05]} 3. e3 {[%emt 0:00:00]} a6 {[%emt 0:00:31]} 4. Bd3 {[%emt 0:00:06]} e6 {[%emt 0:00:18]} 5. Nf3 {[%emt 0:00:13]} c5 {[%emt 0:00:23]} 6. c3 {[%emt 0:00:11]} Nc6 {[%emt 0:00:35]} 7. Nbd2 {[%emt 0:00:18]} Bd6 {[%emt 0:01:25]} 8. Bg3 {[%emt 0:00:23]} O-O {[%emt 0:00:28]} 9. O-O {[%emt 0:00:23]} b6 {[%emt 0:00:27]} 10. Ne5 {[%emt 0:05:29]} Bb7 {[%emt 0:01:40]} 11. b3 {[%emt 0:14:02]} Qc7 {[%emt 0:02:57]} 12. Ndf3 {[%emt 0:05:31]} Ne7 {[%emt 0:04:45]} 13. Bh4 {[%emt 0:26:59]} Ne4 {[%emt 0:05:52]} 14. c4 {[%emt 0:14:15]} cxd4 {[%emt 0:07:59]} 15. cxd5 {[%emt 0:04:06]} Bxd5 {[%emt 0:03:59]} 16. Rc1 {[%emt 0:05:26]} Nc3 {[%emt 0:03:40]} 17. Bxh7+ {[%emt 0:08:46]} Kh8 {[%emt 0:04:12]} 18. Qxd4 {[%emt 0:04:05]} Ne2+ {[%emt 0:00:43]} 19. Kh1 {[%emt 0:01:13]} Nxd4 {[%emt 0:01:13]} 20. Rxc7 {[%emt 0:01:54]} Bxc7 {[%emt 0:00:31]} 21. Bxe7 {[%emt 0:02:55]} Rfe8 {[%emt 0:01:41]} 22. Ng5 {[%emt 0:04:11]} Bxe5 {[%emt 0:00:51]} 0-1